fUSD/lending_fUSD_20250906
["ID","MTS","AMOUNT","RATE_DAILY","PERIOD"]
[383833153,1757137842302,-168.13,0.00034188,2]
[383833155,1757137842311,-3292.0,0.0003425,3]
[383833157,1757137842321,-458.0,0.00034272,5]
[383833159,1757137842332,-2764.0208,0.00034356,10]
[383833161,1757137842342,-166.29,0.00034371,2]
[383833163,1757137842353,-199.0,0.00034383,9]
[383833165,1757137842364,-913.92,0.00034481,2]
[383833167,1757137842374,-469.05909499,0.00034546,5]
[383833169,1757137842385,-300.0,0.00034581,2]
[383833171,1757137842395,-789.29999564,0.00034608,2]
[383833173,1757137842405,-5726.74156,0.0003463,2]
[383833175,1757137842414,-157.19430815,0.00034644,4]
[383833177,1757137842424,-150.0,0.00034644,4]
[383833179,1757137842434,-150.0,0.00034644,4]
[383833181,1757137842445,-155.31944635,0.00034644,4]
[383833183,1757137842455,-156.37783382,0.00034644,4]
[383833185,1757137842465,-150.0,0.00034644,4]
[383833188,1757137842475,-159.53279267,0.00034644,4]
[383833191,1757137842485,-287.59254256,0.00034644,4]
[383833194,1757137842495,-158.61256739,0.00034644,4]
[383833196,1757137842505,-150.0,0.00034644,4]
[383833198,1757137842515,-154.3065894,0.00034644,4]
[383833200,1757137842525,-150.00000001,0.00034644,4]
[383833202,1757137842535,-971.06204039,0.00034725,5]
[383833204,1757137842550,-151.0,0.00034751,14]
[383833206,1757137842560,-17590.0812885,0.00034859,3]
[383833208,1757137842570,-24323.5324593,0.00034869,2]
[383833210,1757137842580,-600.0,0.00034931,7]
[383833212,1757137842590,-52770.2438654,0.00034949,3]
[383833214,1757137842600,-1000.0,0.00034958,2]
[383833215,1757137842611,-1068.78847192,0.00034958,2]
[383833217,1757137842621,-160.0,0.00034959,7]
[383833220,1757137842632,-212.67823062,0.00034959,7]
[383833222,1757137842641,-500.0,0.00034959,2]
[383833224,1757137842650,-500.0,0.00034959,2]
[383833226,1757137842659,-500.0,0.00034959,2]
[383833228,1757137842669,-150.0,0.00034959,2]
[383833230,1757137842678,-150.0,0.00034959,7]
[383833232,1757137842687,-104265.1,0.0003496,7]
[383833234,1757137842696,-8795.04064424,0.0003498,3]
[383833236,1757137842706,-8795.04064424,0.00034989,3]
[383833238,1757137842716,-20000.0,0.0003499,7]
[383833240,1757137842726,-12105.14442791,0.00034999,2]
[383833242,1757137842736,-150.0,0.0003512,2]
[383833244,1757137842745,-8795.04064424,0.00035223,3]
[383833246,1757137842755,-1326.14,0.0003523,2]
[383833248,1757137842765,-600.0,0.00035233,2]
[383833250,1757137842776,-600.0,0.00035233,2]
[383833252,1757137842786,-150.0,0.00035233,7]
[383833254,1757137842796,-610.0,0.00035233,2]
[383833256,1757137842805,-8795.04064424,0.00035251,3]
[383833258,1757137842816,-24323.53245922,0.00035261,2]
[383833260,1757137842826,-500.0,0.00035312,7]
[383833262,1757137842836,-283.18,0.00035456,30]
[383833264,1757137842846,-168.13,0.00035491,2]
[383833266,1757137842855,-6505.70674129,0.00035497,3]
[383833268,1757137842865,-243.48,0.00035507,7]
[383833270,1757137842875,-2094.32027245,0.00035543,9]
[383833272,1757137842884,-789.29999564,0.00035556,2]
[383833274,1757137842894,-8795.04064424,0.00035598,3]
[383833276,1757137842903,-6505.70674129,0.00035598,3]
[383833278,1757137842912,-13338.63,0.00035608,2]
[383833280,1757137842921,-160.679503,0.00035616,10]
[383833282,1757137842931,-182.730201,0.00035616,10]
[383833283,1757137842940,-155.777664,0.00035616,10]
[383833285,1757137842950,-747.033784,0.00035616,10]
[383833287,1757137842960,-500.0,0.00035616,30]
[383833289,1757137842970,-500.0,0.00035616,30]
[383833291,1757137842980,-538.93071361,0.00035616,30]
[383833293,1757137842991,-5726.74156,0.0003563,2]
[383833296,1757137843001,-17590.0812885,0.00035643,3]
[383833298,1757137843011,-13011.4134826,0.00035643,3]
[383833299,1757137843021,-24323.53245922,0.00035653,2]
[383833301,1757137843031,-8795.04064424,0.00035839,3]
[383833303,1757137843042,-6505.70674129,0.00035839,3]
[383833305,1757137843051,-12105.14442791,0.00035849,2]
[383833307,1757137843061,-3000.0,0.00035908,2]
[383833309,1757137843071,-267.46074303,0.00035908,2]
[383833311,1757137843081,-8795.04064424,0.00036035,3]
[383833313,1757137843090,-13011.4134826,0.00036035,3]
[383833315,1757137843102,-24323.53245922,0.00036045,2]
[383833317,1757137843113,-500.0,0.00036052,7]
[383833319,1757137843125,-6505.70674129,0.00036319,3]
[383833321,1757137843135,-500.0,0.00036329,2]
[383833324,1757137843146,-8795.04064424,0.00036418,4]
[383833325,1757137843156,-8795.04064424,0.00036428,4]
[383833326,1757137843166,-13011.4134826,0.00036428,4]
[383833327,1757137843176,-865.68,0.00036428,2]
[383833328,1757137843186,-500.0,0.00036434,2]
[383833329,1757137843196,-154.89,0.00036434,2]
[383833330,1757137843206,-24323.53245922,0.00036437,2]
[383833331,1757137843216,-206.97,0.00036472,2]
[383833332,1757137843225,-150.0,0.00036473,5]
[383833333,1757137843235,-789.29999564,0.00036504,2]
[383833334,1757137843244,-500.0,0.00036529,7]
[383833335,1757137843254,-150.0,0.00036568,7]
[383833337,1757137843263,-4026.92,0.00036588,2]
[383833339,1757137843274,-8795.04064424,0.00036593,4]
[383833340,1757137843284,-5726.74156,0.0003663,2]
[383833342,1757137843293,-6505.70674129,0.00036688,4]
[383833344,1757137843303,-1000.0,0.00036697,2]
[383833346,1757137843313,-12105.14442791,0.00036698,2]
[383833348,1757137843323,-168.13,0.00036794,2]
[383833350,1757137843332,-17590.0812885,0.0003682,4]
[383833352,1757137843343,-13011.4134826,0.0003682,4]
[383833355,1757137843353,-24323.53245922,0.0003683,2]
[383833357,1757137843363,-221.4,0.00036841,2]
[383833358,1757137843373,-1100.0,0.000369,13]
[383833361,1757137843384,-6505.70674129,0.00036923,4]
[383833365,1757137843475,-500.0,0.00036933,7]
[383833366,1757137843496,-254.1783701,0.00037,4]
[383833367,1757137843506,-250.0,0.00037021,5]
[383833368,1757137843516,-221.4,0.00037079,2]
[383833369,1757137843525,-153.16803983,0.000371,5]
[383833370,1757137843535,-560.0,0.00037203,3]
[383833371,1757137843545,-8795.04064424,0.00037212,4]
[383833372,1757137843557,-13011.4134826,0.00037212,4]
[383833373,1757137843570,-24323.53245922,0.00037222,2]
[383833374,1757137843581,-8795.04064424,0.00037267,4]
[383833375,1757137843591,-3128.39592043,0.00037277,2]
[383833376,1757137843601,-277.35679052,0.00037277,2]
[383833377,1757137843612,-2300.0,0.000374,13]
[383833378,1757137843622,-280.0,0.000374,30]
[383833379,1757137843633,-3075.5246494,0.00037437,9]
[383833380,1757137843643,-789.29999564,0.00037451,2]
[383833381,1757137843655,-6505.70674129,0.0003749,4]
[383833382,1757137843666,-3500.0,0.000375,13]
[383833383,1757137843676,-500.0,0.00037519,7]
[383833384,1757137843687,-6505.70674129,0.00037538,4]
[383833385,1757137843698,-12105.14442791,0.00037548,2]
[383833386,1757137843708,-350.0,0.00037568,5]
[383833387,1757137843719,-993.17298212,0.00037594,2]
[383833388,1757137843730,-4600.0,0.000376,13]
[383833389,1757137843740,-13011.4134826,0.00037604,4]
[383833390,1757137843750,-24323.53245922,0.00037614,2]
[383833391,1757137843760,-5726.74156,0.0003763,2]
[383833392,1757137843770,-500.0,0.00037699,2]
[383833393,1757137843780,-5800.0,0.000377,13]
[383833394,1757137843790,-6505.70674129,0.0003777,4]
[383833395,1757137843800,-1100.0,0.000378,13]
[383833396,1757137843810,-212.67823062,0.00037811,3]
[383833397,1757137843820,-1100.0,0.000379,13]
[383833398,1757137843830,-13011.4134826,0.00037996,4]
[383833399,1757137843839,-151.0,0.00038,120]
[383833400,1757137843849,-161.0,0.00038,120]
[383833401,1757137843859,-24323.53245922,0.00038006,2]
[383833402,1757137843869,-6505.70674129,0.00038101,4]
[383833403,1757137843879,-12050.0,0.00038111,7]
[383833404,1757137843889,-450.0,0.00038116,5]
[383833405,1757137843899,-2482.41,0.00038199,16]
[383833406,1757137843909,-176.89170929,0.00038237,2]
[383833407,1757137843919,-176.86856999,0.00038237,2]
[383833408,1757137843931,-700.0,0.0003829,7]
[383833409,1757137843941,-500.0,0.00038319,7]
[383833410,1757137843951,-354.51581489,0.00038327,2]
[383833412,1757137843961,-6505.70674129,0.00038379,4]
[383833414,1757137843970,-19517.1202239,0.00038388,4]
[383833415,1757137843981,-705.77009864,0.00038398,2]
[383833416,1757137843991,-12105.14442791,0.00038398,2]
[383833417,1757137844002,-24323.53245922,0.00038398,2]
[383833418,1757137844012,-197.0,0.00038399,120]
[383833419,1757137844022,-2343.19614772,0.00038399,2]
[383833420,1757137844032,-789.29999564,0.00038399,2]
[383833421,1757137844043,-2588.36885616,0.00038399,2]
[383833422,1757137844053,-300.0,0.00038436,10]
[383833423,1757137844063,-300.0,0.00038436,10]
[383833424,1757137844073,-13011.4134826,0.00038456,4]
[383833425,1757137844083,-150.0,0.00038459,120]
[383833426,1757137844092,-8754.0,0.00038466,120]
[383833427,1757137844103,-6711.0,0.00038466,120]
[383833428,1757137844114,-500.0,0.00038473,5]
[383833429,1757137844123,-500.0,0.00038473,5]
[383833430,1757137844133,-6505.70674129,0.00038488,4]
[383833431,1757137844143,-993.17298212,0.00038489,2]
[383833432,1757137844152,-993.17298212,0.00038489,2]
[383833433,1757137844163,-13011.4134826,0.0003849,4]
[383833434,1757137844172,-161.64070027,0.00038493,7]
[383833435,1757137844182,-290.58595348,0.00038493,7]
[383833436,1757137844192,-254.42044926,0.00038493,7]
[383833437,1757137844202,-300.0,0.00038497,10]
[383833438,1757137844212,-666.0,0.00038497,10]
[383833439,1757137844221,-300.0,0.00038497,10]
[383833440,1757137844231,-623.61715938,0.00038499,2]
[383833441,1757137844240,-300.0,0.00038499,10]
[383833442,1757137844249,-300.0,0.00038499,10]
[383833443,1757137844260,-517.57753819,0.00038499,10]
[383833444,1757137844270,-160.0,0.00038499,14]
[383833445,1757137844280,-160.0,0.00038499,14]
[383833446,1757137844290,-160.0,0.00038499,14]
[383833447,1757137844299,-160.0,0.00038499,14]
[383833448,1757137844309,-160.0,0.00038499,14]
[383833449,1757137844318,-160.0,0.00038499,14]
[383833450,1757137844328,-160.0,0.00038499,14]
[383833451,1757137844338,-160.0,0.00038499,14]
[383833452,1757137844348,-160.0,0.00038499,14]
[383833453,1757137844360,-160.0,0.00038499,14]
[383833454,1757137844370,-160.0,0.00038499,14]
[383833455,1757137844379,-160.0,0.00038499,14]
[383833456,1757137844389,-160.0,0.00038499,14]
[383833457,1757137844399,-160.0,0.00038499,14]
[383833458,1757137844408,-160.0,0.00038499,14]
[383833459,1757137844418,-160.0,0.00038499,14]
[383833460,1757137844428,-160.0,0.00038499,14]
[383833461,1757137844437,-160.0,0.00038499,14]
[383833462,1757137844447,-160.0,0.00038499,14]
[383833463,1757137844456,-160.0,0.00038499,14]
[383833464,1757137844466,-160.0,0.00038499,14]
[383833465,1757137844476,-160.0,0.00038499,14]
[383833466,1757137844486,-160.0,0.00038499,14]
[383833467,1757137844495,-160.0,0.00038499,14]
[383833468,1757137844505,-160.0,0.00038499,14]
[383833469,1757137844515,-160.0,0.00038499,14]
[383833470,1757137844524,-160.0,0.00038499,14]
[383833471,1757137844534,-160.0,0.00038499,14]
[383833472,1757137844547,-160.0,0.00038499,14]
[383833473,1757137844556,-160.0,0.00038499,14]
[383833474,1757137844565,-160.0,0.00038499,14]
[383833475,1757137844575,-160.0,0.00038499,14]
[383833476,1757137844588,-160.0,0.00038499,14]
[383833477,1757137844598,-160.0,0.00038499,14]
[383833478,1757137844607,-160.0,0.00038499,14]
[383833479,1757137844618,-160.0,0.00038499,14]
[383833480,1757137844627,-160.0,0.00038499,14]
[383833481,1757137844637,-160.0,0.00038499,14]
[383833482,1757137844646,-160.0,0.00038499,14]
[383833483,1757137844656,-160.0,0.00038499,14]
[383833484,1757137844665,-160.0,0.00038499,14]
[383833485,1757137844675,-160.0,0.00038499,14]
[383833486,1757137844684,-160.0,0.00038499,14]
[383833487,1757137844694,-160.0,0.00038499,14]
[383833488,1757137844703,-160.0,0.00038499,14]
[383833489,1757137844713,-160.0,0.00038499,14]
[383833490,1757137844722,-160.0,0.00038499,14]
[383833491,1757137844731,-160.0,0.00038499,14]
[383833492,1757137844741,-160.0,0.00038499,14]
[383833493,1757137844750,-160.0,0.00038499,14]
[383833494,1757137844759,-160.0,0.00038499,14]
[383833495,1757137844769,-160.0,0.00038499,14]
[383833496,1757137844778,-160.0,0.00038499,14]
[383833497,1757137844787,-160.0,0.00038499,14]
[383833498,1757137844798,-160.0,0.00038499,14]
[383833499,1757137844807,-160.0,0.00038499,14]
[383833500,1757137844817,-160.0,0.00038499,14]
[383833501,1757137844826,-160.0,0.00038499,14]
[383833502,1757137844836,-160.0,0.00038499,14]
[383833503,1757137844845,-160.0,0.00038499,14]
[383833504,1757137844855,-160.0,0.00038499,14]
[383833505,1757137844865,-160.0,0.00038499,14]
[383833506,1757137844874,-160.0,0.00038499,14]
[383833507,1757137844884,-160.0,0.00038499,14]
[383833508,1757137844893,-160.0,0.00038499,14]
[383833509,1757137844902,-160.0,0.00038499,14]
[383833510,1757137844912,-160.0,0.00038499,14]
[383833511,1757137844921,-160.0,0.00038499,14]
[383833512,1757137844931,-160.0,0.00038499,14]
[383833513,1757137844940,-160.0,0.00038499,14]
[383833514,1757137845036,-160.0,0.00038499,14]
[383833515,1757137845047,-160.0,0.00038499,14]
[383833516,1757137845057,-160.0,0.00038499,14]
[383833517,1757137845067,-160.0,0.00038499,14]
[383833518,1757137845077,-160.0,0.00038499,14]
[383833519,1757137845086,-160.0,0.00038499,14]
[383833520,1757137845095,-160.0,0.00038499,14]
[383833521,1757137845105,-160.0,0.00038499,14]
[383833522,1757137845115,-294.053848,0.00038499,14]
[383833523,1757137845124,-8825632.73755179,0.00038499,30]
[383833524,1757137845134,-500.0,0.00038499,5]
[383833525,1757137845145,-850.56837085,0.00038499,120]
[383833526,1757137845154,-17395.0,0.00038499,30]
[383833527,1757137845166,-535.34569,0.00038499,120]
[383833528,1757137845176,-156.82,0.00038499,2]
[383833529,1757137845186,-155.0,0.00038499,2]
[383833530,1757137845195,-10064.05635401,0.00038499,120]
[383833531,1757137845204,-317.87426759,0.000385,120]
[383833532,1757137845214,-720.23,0.000385,30]
[383833533,1757137845223,-14874.68,0.000385,14]
[383833534,1757137845233,-5367.39,0.000385,30]
[383833535,1757137845243,-2390.34,0.000385,14]
[383833536,1757137845252,-150.0,0.00038535,120]
[383833537,1757137845262,-6505.70674129,0.00038583,4]
[383833538,1757137845272,-300.0,0.00038625,10]
[383833539,1757137845281,-1054.49050297,0.00038625,30]
[383833540,1757137845291,-287.61899177,0.00038646,2]
[383833541,1757137845300,-6505.70674129,0.00038663,4]
[383833542,1757137845309,-550.0,0.00038664,5]
[383833543,1757137845318,-500.0,0.00038673,5]
[383833544,1757137845328,-500.96985331,0.00038673,5]
[383833545,1757137845337,-503.68385313,0.00038673,5]
[383833546,1757137845348,-544.81687817,0.00038673,5]
[383833547,1757137845357,-501.1293454,0.00038673,5]
[383833548,1757137845367,-502.86116643,0.00038673,5]
[383833549,1757137845376,-155.0,0.00038725,2]
[383833550,1757137845385,-150.0,0.00038725,20]
[383833551,1757137845395,-6505.70674129,0.00038938,4]
[383833552,1757137845404,-6505.70674129,0.0003899,4]
[383833553,1757137845413,-280.74718238,0.00039,2]
[383833554,1757137845423,-212.67823062,0.00039,10]
[383833555,1757137845433,-12708.91850507,0.00039,4]
[383833556,1757137845442,-3011.38049103,0.00039,120]
[383833557,1757137845452,-3011.38049103,0.00039,30]
[383833558,1757137845462,-222.7758,0.0003901,30]
[383833559,1757137845471,-1000.0,0.00039021,5]
[383833560,1757137845481,-1000.0,0.00039021,5]
[383833561,1757137845491,-500.0,0.00039069,2]
[383833562,1757137845500,-6505.70674129,0.0003908,4]
[383833563,1757137845509,-13011.4134826,0.000391,4]
[383833564,1757137845519,-300.0,0.00039109,10]
[383833565,1757137845528,-29816.82681511,0.0003911,2]
[383833566,1757137845538,-652.30562018,0.00039212,5]
[383833567,1757137845549,-1000.0,0.00039221,5]
[383833568,1757137845559,-4000.0,0.00039236,4]
[383833569,1757137845568,-4696.52,0.00039383,2]
[383833570,1757137845578,-166.46132899,0.000394,13]
[383833571,1757137845587,-2390.34,0.000394,14]
[383833572,1757137845597,-202.68919405,0.00039403,2]
[383833573,1757137845606,-308.18501051,0.00039416,10]
[383833574,1757137845616,-77903.61424694,0.00039417,2]
[383833575,1757137845626,-1054.49050297,0.00039459,30]
[383833576,1757137845635,-300.0,0.00039469,10]
[383833577,1757137845645,-501.07806888,0.00039473,5]
[383833578,1757137845654,-80761.941931,0.00039477,2]
[383833579,1757137845663,-300.0,0.00039479,10]
[383833580,1757137845673,-1054.49050297,0.00039479,30]
[383833581,1757137845681,-1054.49050296,0.00039479,30]
[383833582,1757137845691,-259.25986343,0.00039479,4]
[383833583,1757137845700,-127577.8469826,0.0003948,2]
[383833584,1757137845709,-713965.8077379,0.0003948,2]
[383833585,1757137845719,-10791.408841,0.0003948,2]
[383833586,1757137845728,-5407.4575054,0.0003948,2]
[383833587,1757137845738,-3349.2905853,0.0003948,2]
[383833588,1757137845747,-9130.8222872,0.0003948,2]
[383833589,1757137845756,-666.0,0.00039502,10]
[383833590,1757137845766,-200.0,0.00039503,2]
[383833591,1757137845776,-152.0,0.00039503,30]
[383833592,1757137845785,-152.0,0.00039503,30]
[383833593,1757137845795,-152.0,0.00039503,30]
[383833594,1757137845804,-152.0,0.00039503,30]
[383833595,1757137845813,-152.0,0.00039503,30]
[383833596,1757137845823,-152.0,0.00039503,30]
[383833597,1757137845832,-152.0,0.00039503,30]
[383833598,1757137845842,-152.0,0.00039503,30]
[383833599,1757137845851,-1224.0,0.00039503,30]
[383833600,1757137845860,-1224.0,0.00039503,30]
[383833601,1757137845870,-1224.0,0.00039503,30]
[383833602,1757137845880,-1224.0,0.00039503,30]
[383833603,1757137845889,-1224.0,0.00039503,30]
[383833604,1757137845899,-1224.0,0.00039503,30]
[383833605,1757137845909,-154.0,0.00039503,30]
[383833606,1757137845918,-154.0,0.00039503,30]
[383833607,1757137845927,-154.0,0.00039503,30]
[383833608,1757137845937,-153.94285468,0.00039503,30]
[383833609,1757137845946,-166.0,0.00039503,30]
[383833610,1757137845956,-166.0,0.00039503,30]
[383833611,1757137845965,-155.0,0.00039503,30]
[383833612,1757137845974,-157.7458438,0.00039503,30]
[383833613,1757137845983,-166.0,0.00039503,30]
[383833614,1757137845992,-166.27730878,0.00039503,30]
[383833615,1757137846002,-870.9448177,0.00039503,2]
[383833616,1757137846011,-152.0,0.00039503,30]
[383833617,1757137846020,-152.0,0.00039503,30]
[383833618,1757137846029,-154.0,0.00039503,30]
[383833619,1757137846039,-154.0,0.00039503,30]
[383833620,1757137846049,-1000.0,0.00039503,2]
[383833621,1757137846058,-307.65206568,0.00039503,2]
[383833622,1757137846067,-155.85193134,0.00039503,14]
[383833623,1757137846077,-1500.0,0.00039568,5]
[383833624,1757137846086,-1500.0,0.00039568,5]
[383833625,1757137846095,-5367.39,0.000397,30]
[383833626,1757137846105,-1241.19,0.000397,22]
[383833627,1757137846115,-1214.56207003,0.00039768,5]
[383833628,1757137846125,-720.23,0.000398,30]
[383833629,1757137846135,-14874.68,0.000398,14]
[383833630,1757137846144,-700.0,0.00039814,7]
[383833631,1757137846154,-2150.88940565,0.0003985,60]
[383833632,1757137846163,-200.0,0.00039898,2]
[383833633,1757137846172,-300.0,0.0004,120]
[383833634,1757137846182,-162.5560616,0.0004,30]
[383833635,1757137846192,-2122.25420515,0.0004,120]
[383833636,1757137846202,-298.26089446,0.00040015,2]
[383833637,1757137846211,-154.89,0.00040077,2]
[383833638,1757137846221,-2000.0,0.00040116,5]
[383833639,1757137846231,-1967.92862254,0.00040116,5]
[383833640,1757137846240,-200.0,0.00040297,2]
[383833641,1757137846249,-2390.34,0.000403,14]
[383833642,1757137846259,-602.91650309,0.00040438,2]
[383833643,1757137846268,-500.0,0.00040492,30]
[383833644,1757137846277,-705.77009864,0.00040649,120]
[383833645,1757137846286,-2500.0,0.00040664,5]
[383833646,1757137846296,-155.45132369,0.00041,120]
[383833647,1757137846306,-556.99304275,0.00041,30]
[383833648,1757137846315,-2092.5890717,0.00041,120]
[383833649,1757137846325,-501.49625987,0.00041096,8]
[383833650,1757137846429,-500.0,0.00041096,10]
[383833651,1757137846439,-213.254,0.00041096,14]
[383833652,1757137846449,-746.0,0.00041096,5]
[383833653,1757137846459,-391.0,0.0004114,30]
[383833654,1757137846469,-2390.34,0.000412,14]
[383833655,1757137846479,-1351.74344398,0.00041212,10]
[383833656,1757137846488,-500.0,0.0004123,30]
[383833657,1757137846497,-746.0,0.0004137,5]
[383833658,1757137846507,-309.29654756,0.00041384,2]
[383833659,1757137846516,-500.0,0.00041393,30]
[383833660,1757137846526,-191.93739556,0.000415,120]
[383833661,1757137846535,-212.67823062,0.00041587,2]
[383833662,1757137846548,-160.0,0.00041587,2]
[383833663,1757137846558,-514.85095374,0.00041587,2]
[383833664,1757137846567,-160.0,0.00041587,2]
[383833665,1757137846576,-5367.39,0.000416,30]
[383833666,1757137846587,-1000.0,0.00041644,10]
[383833667,1757137846597,-746.0,0.00041644,5]
[383833668,1757137846606,-283.18,0.00041681,120]
[383833669,1757137846618,-160.0,0.00041702,2]
[383833670,1757137846627,-354.51581489,0.00041771,4]
[383833671,1757137846637,-151.0,0.000418,120]
[383833672,1757137846647,-720.23,0.000419,30]
[383833673,1757137846656,-14874.68,0.000419,14]
[383833674,1757137846665,-746.0,0.00041918,5]
[383833675,1757137846675,-1698.7146035,0.00042,2]
[383833676,1757137846684,-288.7866592,0.00042,30]
[383833677,1757137846693,-500.0,0.00042011,30]
[383833678,1757137846703,-501.53246808,0.00042192,10]
[383833679,1757137846712,-746.0,0.00042192,5]
[383833680,1757137846722,-3600.0,0.000422,2]
[383833681,1757137846731,-2390.34,0.000422,14]
[383833682,1757137846741,-500.0,0.00042372,30]
[383833683,1757137846750,-746.0,0.00042466,5]
[383833684,1757137846760,-290.29552202,0.000425,120]
[383833685,1757137846769,-150.0,0.00042702,120]
[383833686,1757137846778,-150.0,0.00042726,120]
[383833687,1757137846787,-746.0,0.0004274,5]
[383833688,1757137846797,-320.74051982,0.00042753,2]
[383833689,1757137846807,-982.65739419,0.0004282,2]
[383833690,1757137846816,-705.77009864,0.000429,120]
[383833691,1757137846825,-420.49912939,0.00042999,30]
[383833692,1757137846835,-300.0,0.00042999,30]
[383833693,1757137846844,-214.0,0.00043,7]
[383833694,1757137846854,-5248.64758891,0.00043,120]
[383833695,1757137846864,-129446.2454718,0.00043,120]
[383833696,1757137846874,-19617.14260069,0.00043,120]
[383833697,1757137846883,-160.0,0.00043,10]
[383833698,1757137846893,-746.0,0.00043014,5]
[383833699,1757137846907,-2390.34,0.000431,14]
[383833700,1757137846917,-700.0,0.0004312,30]
[383833701,1757137846926,-5367.39,0.000432,30]
[383833702,1757137846936,-746.0,0.00043288,5]
[383833703,1757137846947,-148853.44682129,0.000435,120]
[383833704,1757137846957,-746.0,0.00043562,5]
[383833705,1757137846966,-720.23,0.000436,30]
[383833706,1757137846975,-14874.68,0.000436,14]
[383833707,1757137846985,-154.89,0.0004372,2]
[383833708,1757137846995,-491.49660913,0.000438,30]
[383833709,1757137847004,-427.91926182,0.00043836,31]
[383833710,1757137847014,-746.0,0.00043836,5]
[383833711,1757137847027,-500.0,0.00043848,30]
[383833712,1757137847044,-150.0,0.00043912,120]
[383833713,1757137847062,-1121.1669554,0.00043987,120]
[383833714,1757137847081,-326.92486487,0.00044,120]
[383833715,1757137847099,-150.0,0.00044035,120]
[383833716,1757137847115,-3620.370662,0.00044102,14]
[383833717,1757137847133,-746.0,0.0004411,5]
[383833718,1757137847152,-332.60791905,0.00044122,2]
[383833719,1757137847170,-746.0,0.00044384,5]
[383833720,1757137847189,-374.38642563,0.0004439,120]
[383833721,1757137847205,-430.82057607,0.000444,33]
[383833722,1757137847224,-571.19697879,0.000445,7]
[383833723,1757137847240,-746.0,0.00044658,5]
[383833724,1757137847255,-5367.39,0.000447,30]
[383833725,1757137847274,-519.7152201,0.000448,120]
[383833726,1757137847287,-161.0,0.000448,120]
[383833727,1757137847303,-700.0,0.0004491,30]
[383833728,1757137847317,-746.0,0.00044932,5]
[383833729,1757137847333,-150.0,0.00044955,93]
[383833730,1757137847347,-150.0,0.00044955,93]
[383833731,1757137847362,-5800.0,0.00044991,14]
[383833732,1757137847378,-5800.0,0.00044999,14]
[383833733,1757137847394,-30300.49532634,0.00045,2]
[383833734,1757137847409,-197.21836807,0.00045,120]
[383833735,1757137847425,-13265.44063902,0.00045,120]
[383833736,1757137847440,-322.85434302,0.00045,120]
[383833737,1757137847456,-428.31413345,0.00045,120]
[383833738,1757137847474,-478.14697816,0.00045,120]
[383833739,1757137847489,-5091.96432432,0.00045,120]
[383833740,1757137847506,-337.89571359,0.00045,120]
[383833741,1757137847521,-308.69188117,0.00045,120]
[383833742,1757137847537,-720.23,0.000451,30]
[383833743,1757137847553,-14874.68,0.000451,14]
[383833744,1757137847568,-18020.4250369,0.00045124,2]
[383833745,1757137847584,-28466.4654286,0.00045128,2]
[383833746,1757137847599,-48218.21797552,0.00045128,2]
[383833747,1757137848158,-111089.08704548,0.00045128,2]
[383833748,1757137848168,-2407.8887829,0.00045128,2]
[383833749,1757137848178,-1206.5668591,0.00045128,2]
[383833750,1757137848188,-747.3277446,0.00045128,2]
[383833751,1757137848198,-2037.3618392,0.00045128,2]
[383833752,1757137848208,-188.88561136,0.0004513,120]
[383833753,1757137848217,-600.0,0.00045132,30]
[383833754,1757137848227,-746.0,0.00045206,5]
[383833755,1757137848236,-354.51581489,0.00045215,19]
[383833756,1757137848246,-548.0,0.00045254,60]
[383833757,1757137848256,-746.0,0.0004548,5]